[Event "Kragero Resort B 2020"]
[Site "Kragero"]
[Date "2020.02.19"]
[Round "2.9"]
[White "Pettersen, Joran Sten"]
[Black "Sivertsen, Jarle"]
[Result "0-1"]
[ECO "D03"]
[WhiteElo "1792"]
[BlackElo "1606"]
[Annotator "NA RC"]
[PlyCount "104"]
[EventDate "2020.02.19"]
[EventType "swiss"]
[EventCountry "NOR"]
[SourceTitle "playchess.com"]
[Source "ChessBase"]
[SourceQuality "1"]
[TimeControl "5400+30"]

1. d4 {[%emt 0:00:00]} Nf6 {[%emt 0:00:00]} 2. Nf3 {[%emt 0:00:00]} d5 {[%emt 0:00:12]} 3. c3 {[%emt 0:01:12]} e6 {[%emt 0:01:36]} 4. Bg5 {[%emt 0:01:04]} Nbd7 {[%emt 0:01:50]} 5. e3 {[%emt 0:01:18]} c5 {[%emt 0:00:57]} 6. Nbd2 {[%emt 0:01:47]} h6 {[%emt 0:02:13]} 7. Bh4 {[%emt 0:01:00]} Bd6 {[%emt 0:01:40]} 8. Bd3 {[%emt 0:02:37]} O-O {[%emt 0:04:07]} 9. Qe2 {[%emt 0:05:42]} e5 {[%emt 0:02:34]} 10. dxe5 {[%emt 0:08:45]} Nxe5 {[%emt 0:02:44]} 11. Nxe5 {[%emt 0:02:13]} Bxe5 {[%emt 0:00:17]} 12. Nf3 {[%emt 0:04:26]} Bc7 {[%emt 0:04:31]} 13. O-O {[%emt 0:01:05]} Bg4 {[%emt 0:03:30]} 14. Rad1 {[%emt 0:02:47]} g5 {[%emt 0:02:13]} 15. Bg3 {[%emt 0:00:24]} Bxg3 {[%emt 0:02:12]} 16. hxg3 {[%emt 0:00:14]} Qe7 {[%emt 0:01:32]} 17. Qc2 {[%emt 0:03:56]} Rad8 {[%emt 0:02:39]} 18. Be2 {[%emt 0:12:07]} Rfe8 {[%emt 0:05:48]} 19. Rfe1 {[%emt 0:00:57]} b6 {[%emt 0:03:41]} 20. Kf1 {[%emt 0:08:35]} Kg7 {[%emt 0:05:34]} 21. c4 {[%emt 0:05:52]} dxc4 {[%emt 0:03:16]} 22. Bxc4 {[%emt 0:01:59]} Ne4 {[%emt 0:11:48]} 23. Bb5 {[%emt 0:02:42]} Rh8 {[%emt 0:03:52]} 24. Bc6 {[%emt 0:01:30]} Bxf3 {[%emt 0:04:27]} 25. gxf3 {[%emt 0:00:31]} Nf6 {[%emt 0:00:15]} 26. f4 {[%emt 0:09:08]} Qe6 {[%emt 0:04:22]} 27. Qa4 {[%emt 0:04:30]} a6 {[%emt 0:07:43]} 28. Bg2 {[%emt 0:01:36]} a5 {[%emt 0:02:22]} 29. a3 {[%emt 0:01:30]} Rhe8 {[%emt 0:02:50]} 30. Rxd8 {[%emt 0:05:31]} Rxd8 {[%emt 0:00:08]} 31. fxg5 {[%emt 0:01:20]} hxg5 {[%emt 0:00:09]} 32. Rd1 {[%emt 0:01:22]} Rxd1+ {[%emt 0:00:57]} 33. Qxd1 {[%emt 0:00:07]} Qc4+ {[%emt 0:02:42]} 34. Kg1 {[%emt 0:01:04]} b5 {[%emt 0:00:55]} 35. Bf1 {[%emt 0:00:48]} Qa2 {[%emt 0:01:41]} 36. Qc2 {[%emt 0:00:57]} c4 {[%emt 0:01:26]} 37. Bg2 {[%emt 0:02:16]} b4 {[%emt 0:01:35]} 38. axb4 {[%emt 0:00:52]} axb4 {[%emt 0:00:16]} 39. Bf1 {[%emt 0:00:34]} c3 {[%emt 0:00:21]} 40. Qf5 {[%emt 0:01:29]} Qd5 {[%emt 0:00:43]} 41. Qc2 {[%emt 0:02:49]} Qc5 {[%emt 0:02:30]} 42. Be2 {[%emt 0:01:17]} Kf8 {[%emt 0:02:23]} 43. b3 {[%emt 0:00:53]} Ke7 {[%emt 0:01:00]} 44. Bc4 {[%emt 0:00:14]} Qe5 {[%emt 0:00:59]} 45. Qd3 {[%emt 0:00:23]} Ne4 {[%emt 0:01:05]} 46. Bd5 {[%emt 0:00:50]} Nd2 {[%emt 0:00:25]} 47. f4 {[%emt 0:00:42]} gxf4 {[%emt 0:00:27]} 48. gxf4 {[%emt 0:00:05]} Qg7+ {[%emt 0:00:45]} 49. Kf2 {[%emt 0:00:07]} Qh6 {[%emt 0:00:34]} 50. Kg2 {[%emt 0:00:36]} Qg6+ {[%emt 0:00:26]} 51. Qxg6 {[%emt 0:00:12]} fxg6 {[%emt 0:00:08]} 52. Kf2 {[%emt 0:01:24]} c2 {[%emt 0:00:10]} 0-1

[Event "Kragero Resort B 2020"]
[Site "Kragero"]
[Date "2020.02.19"]
[Round "2.10"]
[White "Nordquelle, Amelia"]
[Black "Kveim, Ingvar Torjesen"]
[Result "0-1"]
[ECO "A70"]
[WhiteElo "1768"]
[BlackElo "1584"]
[Annotator "NA RC"]
[PlyCount "144"]
[EventDate "2020.02.19"]
[EventType "swiss"]
[EventCountry "NOR"]
[SourceTitle "playchess.com"]
[Source "ChessBase"]
[SourceQuality "1"]
[TimeControl "5400+30"]

1. d4 {[%emt 0:00:22]} Nf6 {[%emt 0:00:00]} 2. c4 {[%emt 0:01:28]} c5 {[%emt 0:00:00]} 3. d5 {[%emt 0:03:04]} e6 {[%emt 0:00:00]} 4. Nc3 {[%emt 0:01:03]} exd5 {[%emt 0:00:00]} 5. cxd5 {[%emt 0:02:15]} d6 {[%emt 0:00:00]} 6. g3 {[%emt 0:01:26]} g6 {[%emt 0:00:18]} 7. Bg2 {[%emt 0:01:07]} Bg7 {[%emt 0:00:05]} 8. Nf3 {[%emt 0:04:52]} O-O {[%emt 0:00:29]} 9. O-O {[%emt 0:00:16]} Bg4 {[%emt 0:00:45]} 10. Re1 {[%emt 0:01:39]} Bxf3 {[%emt 0:05:30]} 11. Bxf3 {[%emt 0:01:40]} a6 {[%emt 0:00:44]} 12. a4 {[%emt 0:02:03]} Nbd7 {[%emt 0:00:04]} 13. a5 {[%emt 0:06:06]} Qc7 {[%emt 0:00:06]} 14. Bd2 {[%emt 0:02:41]} Rfe8 {[%emt 0:06:45]} 15. Qc2 {[%emt 0:07:06]} Ne5 {[%emt 0:07:04]} 16. Bg2 {[%emt 0:00:57]} Nc4 {[%emt 0:03:33]} 17. Na4 {[%emt 0:03:20]} Nxd2 {[%emt 0:01:12]} 18. Qxd2 {[%emt 0:00:12]} Nd7 {[%emt 0:02:29]} 19. Bh3 {[%emt 0:04:04]} Rad8 {[%emt 0:02:29]} 20. Rac1 {[%emt 0:07:55]} Re4 {[%emt 0:21:38]} 21. Bxd7 {[%emt 0:09:09]} Qxd7 {[%emt 0:00:19]} 22. Nb6 {[%emt 0:03:09]} Qb5 {[%emt 0:03:50]} 23. e3 {[%emt 0:11:27]} Rb4 {[%emt 0:01:36]} 24. Ra1 {[%emt 0:03:23]} Rxb2 {[%emt 0:02:10]} 25. Qd1 {[%emt 0:00:42]} Bc3 {[%emt 0:04:10]} 26. Na4 {[%emt 0:01:43]} Rd2 {[%emt 0:16:09]} 27. Nxc3 {[%emt 0:02:29]} Rxd1 {[%emt 0:00:07]} 28. Nxb5 {[%emt 0:00:50]} Rxe1+ {[%emt 0:00:07]} 29. Rxe1 {[%emt 0:00:11]} axb5 {[%emt 0:00:03]} 30. Kf1 {[%emt 0:02:53]} Ra8 {[%emt 0:00:09]} 31. Ra1 {[%emt 0:00:19]} Kg7 {[%emt 0:00:04]} 32. Ke2 {[%emt 0:01:44]} Kf6 {[%emt 0:00:04]} 33. Kd3 {[%emt 0:01:19]} Ke5 {[%emt 0:00:46]} 34. e4 {[%emt 0:00:38]} g5 {[%emt 0:01:17]} 35. f4+ {[%emt 0:02:53]} gxf4 {[%emt 0:01:05]} 36. gxf4+ {[%emt 0:00:21]} Kxf4 {[%emt 0:02:27]} 37. Rf1+ {[%emt 0:00:06]} Kg4 {[%emt 0:01:28]} 38. Rxf7 {[%emt 0:00:41]} Rxa5 {[%emt 0:01:32]} 39. Rxh7 {[%emt 0:00:48]} Ra3+ {[%emt 0:00:48]} 40. Kd2 {[%emt 0:00:52]} Kf4 {[%emt 0:01:14]} 41. Re7 {[%emt 0:02:07]} Ra2+ {[%emt 0:01:00]} 42. Kd3 {[%emt 0:00:09]} Rxh2 {[%emt 0:01:55]} 43. Rf7+ {[%emt 0:01:18]} Kg5 {[%emt 0:00:46]} 44. Rg7+ {[%emt 0:01:06]} Kf6 {[%emt 0:00:28]} 45. Rd7 {[%emt 0:00:18]} Rh3+ {[%emt 0:00:22]} 46. Kd2 {[%emt 0:00:47]} Ke5 {[%emt 0:00:07]} 47. Re7+ {[%emt 0:00:29]} Kd4 {[%emt 0:00:07]} 48. Re6 {[%emt 0:00:45]} Rh2+ {[%emt 0:01:17]} 49. Kd1 {[%emt 0:01:11]} Rh5 {[%emt 0:01:57]} 50. Kd2 {[%emt 0:01:44]} Re5 {[%emt 0:00:48]} 51. Rxd6 {[%emt 0:00:21]} Kxe4 {[%emt 0:00:36]} 52. Rb6 {[%emt 0:01:16]} Kxd5 {[%emt 0:00:19]} 53. Rxb5 {[%emt 0:01:21]} Kc6 {[%emt 0:00:05]} 54. Ra5 {[%emt 0:00:51]} b5 {[%emt 0:01:38]} 55. Kd3 {[%emt 0:00:38]} Rd5+ {[%emt 0:00:16]} 56. Kc3 {[%emt 0:00:25]} Kb6 {[%emt 0:00:54]} 57. Ra8 {[%emt 0:00:27]} b4+ {[%emt 0:00:35]} 58. Kb3 {[%emt 0:01:06]} Rd3+ {[%emt 0:00:10]} 59. Kb2 {[%emt 0:00:32]} Kb5 {[%emt 0:00:18]} 60. Rf8 {[%emt 0:01:08]} Kc4 {[%emt 0:00:14]} 61. Rf2 {[%emt 0:01:33]} Re3 {[%emt 0:02:08]} 62. Kc2 {[%emt 0:01:01]} b3+ {[%emt 0:01:50]} 63. Kb2 {[%emt 0:00:10]} Kb4 {[%emt 0:00:12]} 64. Rg2 {[%emt 0:01:12]} c4 {[%emt 0:00:08]} 65. Rg1 {[%emt 0:00:40]} Re2+ {[%emt 0:00:18]} 66. Kb1 {[%emt 0:00:26]} c3 {[%emt 0:01:36]} 67. Rc1 {[%emt 0:00:37]} Rb2+ {[%emt 0:00:09]} 68. Ka1 {[%emt 0:00:14]} Ra2+ {[%emt 0:00:54]} 69. Kb1 {[%emt 0:00:22]} c2+ {[%emt 0:00:11]} 70. Rxc2 {[%emt 0:00:15]} Rxc2 {[%emt 0:00:11]} 71. Ka1 {[%emt 0:00:10]} Ka3 {[%emt 0:00:23]} 72. Kb1 {[%emt 0:00:07]} Rh2 {[%emt 0:01:37]} 0-1

[Event "Kragero Resort B 2020"]
[Site "Kragero"]
[Date "2020.02.19"]
[Round "2.11"]
[White "Rynning, Rune Kleiven"]
[Black "Sekkingstad, Thomas"]
[Result "1-0"]
[ECO "B19"]
[WhiteElo "1625"]
[BlackElo "1758"]
[Annotator "NA RC"]
[PlyCount "83"]
[EventDate "2020.02.19"]
[EventType "swiss"]
[EventCountry "NOR"]
[SourceTitle "playchess.com"]
[Source "ChessBase"]
[SourceQuality "1"]
[TimeControl "5400+30"]

1. e4 {[%emt 0:00:00]} c6 {[%emt 0:00:00]} 2. d4 {[%emt 0:00:00]} d5 {[%emt 0:00:00]} 3. Nc3 {[%emt 0:00:00]} dxe4 {[%emt 0:00:02]} 4. Nxe4 {[%emt 0:00:00]} Bf5 {[%emt 0:00:15]} 5. Ng3 {[%emt 0:00:01]} Bg6 {[%emt 0:00:05]} 6. h4 {[%emt 0:00:07]} h6 {[%emt 0:00:07]} 7. Nf3 {[%emt 0:00:05]} Nd7 {[%emt 0:00:10]} 8. h5 {[%emt 0:00:08]} Bh7 {[%emt 0:00:05]} 9. Bd3 {[%emt 0:00:06]} Bxd3 {[%emt 0:00:45]} 10. Qxd3 {[%emt 0:00:08]} Ngf6 {[%emt 0:00:13]} 11. Bd2 {[%emt 0:00:10]} Qc7 {[%emt 0:00:04]} 12. O-O-O {[%emt 0:06:16]} O-O-O {[%emt 0:00:43]} 13. Ne2 {[%emt 0:07:50]} e6 {[%emt 0:01:44]} 14. Bf4 {[%emt 0:02:26]} Bd6 {[%emt 0:01:34]} 15. Bxd6 {[%emt 0:00:24]} Qxd6 {[%emt 0:00:08]} 16. Kb1 {[%emt 0:04:40]} Rhe8 {[%emt 0:00:41]} 17. Nc3 {[%emt 0:07:08]} Qf4 {[%emt 0:06:26]} 18. Rh4 {[%emt 0:02:42]} Qc7 {[%emt 0:00:46]} 19. Ne4 {[%emt 0:04:46]} Nxe4 {[%emt 0:01:58]} 20. Qxe4 {[%emt 0:00:08]} Nf6 {[%emt 0:00:54]} 21. Qe5 {[%emt 0:02:17]} Rd6 {[%emt 0:02:11]} 22. Qg3 {[%emt 0:07:58]} Rg8 {[%emt 0:02:48]} 23. Ne5 {[%emt 0:04:48]} Rdd8 {[%emt 0:08:17]} 24. Rd3 {[%emt 0:06:13]} Qe7 {[%emt 0:08:41]} 25. Rb3 {[%emt 0:03:18]} Nd7 {[%emt 0:02:19]} 26. Nc4 {[%emt 0:03:20]} Nb6 {[%emt 0:07:50]} 27. Rxb6 {[%emt 0:01:31]} Qg5 {[%emt 0:10:44]} 28. Rb3 {[%emt 0:02:38]} c5 {[%emt 0:04:07]} 29. Qxg5 {[%emt 0:05:48]} hxg5 {[%emt 0:00:13]} 30. Re4 {[%emt 0:01:08]} f5 {[%emt 0:00:07]} 31. Rxe6 {[%emt 0:00:44]} Rxd4 {[%emt 0:00:13]} 32. Ne3 {[%emt 0:01:23]} f4 {[%emt 0:00:18]} 33. c3 {[%emt 0:01:48]} Rd2 {[%emt 0:00:42]} 34. Ng4 {[%emt 0:04:57]} Rd1+ {[%emt 0:00:33]} 35. Kc2 {[%emt 0:00:09]} Rgd8 {[%emt 0:00:02]} 36. Re2 {[%emt 0:02:00]} Rg1 {[%emt 0:00:15]} 37. f3 {[%emt 0:02:18]} Rdd1 {[%emt 0:00:17]} 38. Ne5 {[%emt 0:03:44]} Kc7 {[%emt 0:01:28]} 39. Nc4 {[%emt 0:03:27]} Kc6 {[%emt 0:03:05]} 40. Na5+ {[%emt 0:02:24]} Kd5 {[%emt 0:00:21]} 41. c4+ {[%emt 0:00:42]} Kd6 {[%emt 0:00:11]} 42. Nxb7+ {[%emt 0:01:12]} 1-0

[Event "Kragero Resort B 2020"]
[Site "Kragero"]
[Date "2020.02.19"]
[Round "2.12"]
[White "Myagmarsuren, Evsuld"]
[Black "Aasen, Joakim"]
[Result "1/2-1/2"]
[ECO "B43"]
[WhiteElo "1497"]
[BlackElo "1745"]
[Annotator "NA RC"]
[PlyCount "120"]
[EventDate "2020.02.19"]
[EventType "swiss"]
[EventCountry "NOR"]
[SourceTitle "playchess.com"]
[Source "ChessBase"]
[SourceQuality "1"]
[TimeControl "5400+30"]

1. e4 {[%emt 0:00:00]} c5 {[%emt 0:00:00]} 2. Nf3 {[%emt 0:00:00]} e6 {[%emt 0:00:00]} 3. d4 {[%emt 0:00:22]} cxd4 {[%emt 0:00:00]} 4. Nxd4 {[%emt 0:00:41]} a6 {[%emt 0:00:09]} 5. Nc3 {[%emt 0:00:11]} Qc7 {[%emt 0:00:14]} 6. Be2 {[%emt 0:03:13]} b5 {[%emt 0:01:23]} 7. O-O {[%emt 0:00:35]} Bb7 {[%emt 0:00:05]} 8. f4 {[%emt 0:00:21]} d6 {[%emt 0:04:09]} 9. Bf3 {[%emt 0:06:02]} Nd7 {[%emt 0:02:29]} 10. Re1 {[%emt 0:02:30]} Be7 {[%emt 0:00:39]} 11. e5 {[%emt 0:01:24]} dxe5 {[%emt 0:02:16]} 12. fxe5 {[%emt 0:00:15]} Bc5 {[%emt 0:01:04]} 13. Kh1 {[%emt 0:01:06]} Rd8 {[%emt 0:02:31]} 14. Bf4 {[%emt 0:10:55]} Nb6 {[%emt 0:03:11]} 15. Bxb7 {[%emt 0:00:24]} Qxb7 {[%emt 0:00:08]} 16. Qf3 {[%emt 0:00:16]} Qxf3 {[%emt 0:03:29]} 17. Nxf3 {[%emt 0:00:09]} Bb4 {[%emt 0:00:14]} 18. Be3 {[%emt 0:08:31]} Nc4 {[%emt 0:04:04]} 19. a3 {[%emt 0:01:24]} Bxc3 {[%emt 0:01:20]} 20. bxc3 {[%emt 0:00:52]} Nxe3 {[%emt 0:03:44]} 21. Rxe3 {[%emt 0:00:09]} Ne7 {[%emt 0:00:05]} 22. Rd3 {[%emt 0:00:45]} Nd5 {[%emt 0:04:20]} 23. Rad1 {[%emt 0:02:49]} Ke7 {[%emt 0:00:51]} 24. Nd4 {[%emt 0:00:14]} Rc8 {[%emt 0:00:24]} 25. Kg1 {[%emt 0:01:05]} Rc4 {[%emt 0:01:18]} 26. Nf5+ {[%emt 0:01:58]} Kf8 {[%emt 0:04:51]} 27. Ne3 {[%emt 0:00:48]} Rc5 {[%emt 0:02:14]} 28. Nxd5 {[%emt 0:03:01]} exd5 {[%emt 0:00:46]} 29. Rxd5 {[%emt 0:00:50]} Rxd5 {[%emt 0:00:05]} 30. Rxd5 {[%emt 0:00:11]} Ke7 {[%emt 0:00:02]} 31. Rc5 {[%emt 0:01:00]} Rd8 {[%emt 0:01:08]} 32. c4 {[%emt 0:00:25]} Rd1+ {[%emt 0:02:50]} 33. Kf2 {[%emt 0:00:17]} Rd2+ {[%emt 0:00:11]} 34. Kf3 {[%emt 0:00:43]} Rxc2 {[%emt 0:00:12]} 35. Rc7+ {[%emt 0:01:12]} Ke6 {[%emt 0:01:21]} 36. Rc6+ {[%emt 0:00:17]} Kxe5 {[%emt 0:00:15]} 37. Rxa6 {[%emt 0:04:37]} bxc4 {[%emt 0:01:37]} 38. a4 {[%emt 0:00:49]} Ra2 {[%emt 0:01:25]} 39. a5 {[%emt 0:01:19]} Kd4 {[%emt 0:01:54]} 40. Ra7 {[%emt 0:03:50]} c3 {[%emt 0:01:46]} 41. a6 {[%emt 0:04:45]} c2 {[%emt 0:17:51]} 42. Rc7 {[%emt 0:00:19]} Ra3+ {[%emt 0:01:32]} 43. Ke2 {[%emt 0:01:47]} Rc3 {[%emt 0:03:01]} 44. Rxc3 {[%emt 0:01:10]} Kxc3 {[%emt 0:00:05]} 45. a7 {[%emt 0:00:13]} c1=Q {[%emt 0:00:07]} 46. a8=Q {[%emt 0:00:14]} Qc2+ {[%emt 0:01:05]} 47. Kf3 {[%emt 0:00:14]} Qf5+ {[%emt 0:00:53]} 48. Kg3 {[%emt 0:00:55]} Qg6+ {[%emt 0:03:30]} 49. Kf3 {[%emt 0:00:23]} Qf6+ {[%emt 0:00:45]} 50. Kg3 {[%emt 0:01:13]} Kd3 {[%emt 0:00:21]} 51. Qd5+ {[%emt 0:01:04]} Ke3 {[%emt 0:02:08]} 52. Qb3+ {[%emt 0:00:22]} Ke4 {[%emt 0:01:01]} 53. Qc4+ {[%emt 0:00:13]} Kf5 {[%emt 0:00:37]} 54. Qd3+ {[%emt 0:00:59]} Ke5 {[%emt 0:02:03]} 55. Qxh7 {[%emt 0:02:04]} Qf4+ {[%emt 0:01:00]} 56. Kh3 {[%emt 0:00:07]} g5 {[%emt 0:00:37]} 57. Qh8+ {[%emt 0:00:16]} f6 {[%emt 0:00:21]} 58. Qb8+ {[%emt 0:00:16]} Kf5 {[%emt 0:00:14]} 59. Qxf4+ {[%emt 0:01:01]} Kxf4 {[%emt 0:01:14]} 60. g4 {[%emt 0:00:21]} Kf3 {[%emt 0:01:35]} 1/2-1/2

[Event "Kragero Resort B 2020"]
[Site "Kragero"]
[Date "2020.02.20"]
[Round "3.1"]
[White "Solaas, Timian Martinius Man"]
[Black "Skaslien, Ingrid"]
[Result "1-0"]
[ECO "B07"]
[WhiteElo "1741"]
[BlackElo "1847"]
[Annotator "NA RC"]
[PlyCount "59"]
[EventDate "2020.02.19"]
[EventType "swiss"]
[EventCountry "NOR"]
[SourceTitle "playchess.com"]
[Source "ChessBase"]
[SourceQuality "1"]
[TimeControl "5400+30"]

{[%evp 17,46,31,36,-31,31,19,147,137,148,32767,137,124,135,83,177,11,0,30,23,-47,32767,232,228,186,175,224,331,387,415,357,482]} 1. e4 {[%emt 0:00:00]} d6 {[%emt 0:00:13]} 2. d4 {[%emt 0:00:24]} Nf6 {[%emt 0:00:13]} 3. Bd3 {[%emt 0:02:09]} e5 {[%emt 0:01:36]} 4. d5 {[%emt 0:01:16]} c6 {[%emt 0:04:08]} 5. c4 {[%emt 0:01:09]} a5 {[%emt 0:04:13]} 6. Nc3 {[%emt 0:01:52] B07: Pirc Defence: Miscellaneous Systems.} Be7 {[%emt 0:00:58]} 7. Nge2 {[%emt 0:00:46]} Nbd7 {[%emt 0:03:10]} 8. O-O {[%emt 0:04:48]} O-O {[%emt 0:05:30]} 9. h3 {[%emt 0:03:11]} Nc5 {[%emt 0:18:46]} 10. f4 {[%emt 0:09:29]} (10. Bc2 $14) 10... Nfd7 {[%emt 0:02:43]} (10... b5 $5) 11. Bc2 {[%emt 0:05:53] [#]} f5 $146 {[%emt 0:10:17]} ({Predecessor:} 11... exf4 $11 {keeps the balance.} 12. Bxf4 Ne5 13. Nd4 Qb6 14. b3 Ncd3 15. Be3 Bg5 16. Qe2 Bxe3+ 17. Qxe3 Nc5 {0-1 (33) Smagulov,A (1828)-Turikov,V (2334) Dresden 2010}) 12. exf5 {[%emt 0:07:25]} exf4 {[%emt 0:05:27]} 13. Nxf4 {[%emt 0:09:30]} Ne5 {[%emt 0:01:24]} 14. g4 {[%emt 0:02:27]} Qb6 {[%emt 0:06:42]} 15. Be3 {[%emt 0:05:43]} Nxc4 {[%emt 0:02:16]} (15... Qxb2 $16 {was necessary.} 16. Bd4 Qb4) 16. Qe2 {[%emt 0:03:42]} (16. Na4 $16 Qc7 17. Bxc5 dxc5 18. Qd3) 16... Nxe3 {[%emt 0:01:44]} 17. Qxe3 {[%emt 0:00:31]} Bd8 {[%emt 0:01:23]} 18. Kh1 {[%emt 0:06:02]} (18. Rad1 $11) 18... cxd5 {[%emt 0:02:49]} 19. Nfxd5 {[%emt 0:02:05]} Qc6 {[%emt 0:01:27]} 20. Rad1 {[%emt 0:04:30]} Re8 {[%emt 0:02:09]} 21. Qf3 {[%emt 0:00:44]} Bd7 {[%emt 0:02:29]} (21... Re5 $142 22. Kh2 Qe8) 22. Kh2 {[%emt 0:01:22]} Bf6 {[%emt 0:03:15]} 23. Nxf6+ {[%emt 0:01:12]} gxf6 $18 {[%emt 0:00:04]} 24. Nd5 {[%emt 0:06:48]} Kg7 {[%emt 0:01:35]} 25. g5 {[%emt 0:02:53]} Qb5 {[%emt 0:01:07]} 26. Rf2 {[%emt 0:04:06]} Qxb2 {[%emt 0:01:39]} 27. Nxf6 {[%emt 0:01:42]} Qe5+ {[%emt 0:02:01]} 28. Kg1 {[%emt 0:00:29]} Rf8 {[%emt 0:02:12]} 29. Re2 {[%emt 0:01:50]} Bc6 {[%emt 0:01:15]} 30. Qg4 {[%emt 0:03:36]} 1-0

[Event "Kragero Resort B 2020"]
[Site "Kragero"]
[Date "2020.02.20"]
[Round "3.2"]
[White "Leonhardsen, Vebjorn Maanum"]
[Black "Espeland, Jonatan"]
[Result "1-0"]
[ECO "E97"]
[WhiteElo "1845"]
[BlackElo "1737"]
[Annotator "NA RC"]
[PlyCount "109"]
[EventDate "2020.02.19"]
[EventType "swiss"]
[EventCountry "NOR"]
[SourceTitle "playchess.com"]
[Source "ChessBase"]
[SourceQuality "1"]
[TimeControl "5400+30"]

1. Nf3 {[%emt 0:02:56]} g6 {[%emt 0:00:00]} 2. d4 {[%emt 0:00:32]} Bg7 {[%emt 0:00:00]} 3. c4 {[%emt 0:00:15]} d6 {[%emt 0:03:50]} 4. Nc3 {[%emt 0:00:16]} Nf6 {[%emt 0:04:22]} 5. e4 {[%emt 0:00:30]} O-O {[%emt 0:00:13]} 6. Be2 {[%emt 0:00:23]} e5 {[%emt 0:04:54]} 7. O-O {[%emt 0:03:33]} Nc6 {[%emt 0:00:38]} 8. d5 {[%emt 0:04:03]} Ne7 {[%emt 0:00:14]} 9. Be3 {[%emt 0:00:12]} Ng4 {[%emt 0:04:46]} 10. Bd2 {[%emt 0:05:00] E97: King's Indian: Classical Main Line (6...e5 7 0-0 Nc6): 8 Be3 and 8 d5 Ne7, not 9 Ne1.} f5 {[%emt 0:01:00]} 11. Ne1 {[%emt 0:00:31]} Nf6 {[%emt 0:01:02]} 12. f3 {[%emt 0:00:44]} f4 {[%emt 0:00:42]} 13. Nd3 {[%emt 0:01:30]} g5 {[%emt 0:06:16]} 14. b4 {[%emt 0:04:13]} h5 {[%emt 0:04:53]} 15. c5 {[%emt 0:07:01] [#]} c6 $146 {[%emt 0:08:03]} ({Predecessor:} 15... Ng6 16. a4 Rf7 17. Nb2 Bf8 18. cxd6 cxd6 19. Nc4 Rg7 20. b5 g4 {0-1 (28) Danlag,D-Weeramantry,S (2295) Alexandria 1996}) 16. dxc6 {[%emt 0:11:10]} Nxc6 {[%emt 0:01:53]} 17. Be1 {[%emt 0:09:16]} Nd4 {[%emt 0:15:21]} 18. Bf2 {[%emt 0:01:13]} dxc5 {[%emt 0:08:22]} 19. Nxc5 {[%emt 0:04:23]} b6 {[%emt 0:02:09]} 20. Bc4+ {[%emt 0:02:29]} Kh7 {[%emt 0:00:21]} 21. Nb3 {[%emt 0:01:28]} Be6 {[%emt 0:04:27]} 22. Bxe6 {[%emt 0:02:06]} Nxe6 {[%emt 0:00:02]} 23. Qe2 {[%emt 0:00:46]} Qe7 {[%emt 0:10:19]} 24. a3 {[%emt 0:01:17]} (24. Nd5 $5 {[%cal Rd5e7]} Qf7 25. Rac1 $11) 24... Rac8 {[%emt 0:00:52]} 25. Nd5 {[%emt 0:08:52]} Qf7 {[%emt 0:00:13]} 26. Rfd1 {[%emt 0:01:30]} Rfd8 $11 {[%emt 0:03:07]} 27. Rac1 {[%emt 0:12:49]} Nc7 {[%emt 0:02:36]} 28. Rxc7 {[%emt 0:03:09]} Rxc7 {[%emt 0:00:16]} 29. Nxc7 {[%emt 0:00:18]} Rxd1+ {[%emt 0:01:01]} 30. Qxd1 {[%emt 0:00:08]} Qxc7 {[%emt 0:00:04]} 31. Qd3 {[%emt 0:02:28]} Bf8 {[%emt 0:02:28]} 32. Be1 {[%emt 0:01:09]} Bd6 {[%emt 0:04:30]} 33. Bd2 {[%emt 0:00:38]} Qc6 {[%emt 0:01:28]} 34. Nc1 {[%emt 0:01:40]} Ne8 {[%emt 0:00:49]} 35. Qc3 {[%emt 0:00:57]} Qxc3 {[%emt 0:02:50]} 36. Bxc3 {[%emt 0:00:19]} Kg6 {[%emt 0:00:05]} 37. Nd3 {[%emt 0:00:58]} Kf6 {[%emt 0:00:01]} 38. h4 {[%emt 0:01:04]} g4 {[%emt 0:01:53]} 39. Nxf4 {[%emt 0:01:52]} Ng7 {[%emt 0:01:24]} 40. fxg4 {[%emt 0:01:32]} hxg4 {[%emt 0:00:02]} 41. Kf2 {[%emt 0:01:19]} a5 {[%emt 0:02:05]} 42. Nd5+ {[%emt 0:00:34]} Ke6 {[%emt 0:00:16]} 43. Nxb6 {[%emt 0:00:46]} axb4 {[%emt 0:00:02]} 44. axb4 {[%emt 0:00:28]} Nh5 {[%emt 0:00:24]} 45. Nd5 {[%emt 0:01:15]} Nf4 {[%emt 0:01:12]} 46. Nxf4+ {[%emt 0:00:37]} exf4 {[%emt 0:00:02]} 47. h5 {[%emt 0:01:05]} Kf7 {[%emt 0:00:28]} 48. e5 {[%emt 0:00:31]} Be7 {[%emt 0:00:39]} 49. b5 {[%emt 0:00:32]} Bc5+ {[%emt 0:00:17]} 50. Kf1 {[%emt 0:00:36]} Ke6 {[%emt 0:01:11]} 51. h6 {[%emt 0:00:30]} Kf7 {[%emt 0:00:31]} 52. e6+ {[%emt 0:00:34]} Kg6 {[%emt 0:00:05]} 53. b6 {[%emt 0:00:25]} Kxh6 {[%emt 0:00:47]} 54. b7 {[%emt 0:00:10]} Bd6 {[%emt 0:00:09]} 55. e7 {[%emt 0:00:13]} 1-0